bitfinex-derivatives/quotes_BTCF0:USTF0_20241128
["timestamp","ask_amount","ask_price","bid_price","bid_amount"]
[1732759906579,0.052888,96259.0,96257.0,0.25202074]
[1732759906774,0.001,96259.0,96258.0,0.01423417]
[1732759906971,0.001,96259.0,96258.0,0.32591417]
[1732759907283,0.00012747,96270.0,96264.0,0.051885]
[1732759907284,0.051885,96265.0,96264.0,0.051885]
[1732759907479,0.051885,96265.0,96264.0,0.42692121]
[1732759907678,0.051885,96265.0,96264.0,0.39868578]
[1732759907875,0.051885,96265.0,96264.0,0.45057078]
[1732759908074,0.051885,96265.0,96264.0,0.42692121]
[1732759908574,0.00012747,96270.0,96264.0,0.37503621]
[1732759908775,0.00012747,96270.0,96268.0,0.051883]
[1732759908980,0.00012747,96270.0,96269.0,0.01487428]
[1732759909784,0.00012747,96270.0,96269.0,0.03892752]
[1732759910175,0.00012747,96270.0,96269.0,0.06900725]
[1732759910479,0.00112747,96270.0,96269.0,0.06900725]
[1732759911379,0.00212747,96270.0,96269.0,0.06900725]
[1732759911783,0.00212747,96270.0,96269.0,0.03892752]
[1732759912586,0.15924747,96270.0,96269.0,0.03892752]
[1732759913384,0.28362597,96270.0,96269.0,0.06957045]
[1732759913580,0.15924747,96270.0,96269.0,0.03892752]
[1732759918592,0.20971492,96270.0,96269.0,0.03892752]
[1732759920495,0.051883,96269.0,96264.0,0.3608]
[1732759920681,0.05046726,96268.0,96265.0,0.0388717]
[1732759920883,0.05046726,96267.0,96266.0,0.0388717]
[1732759921679,0.051884,96268.0,96266.0,0.0388717]
[1732759921879,0.051884,96268.0,96267.0,0.0388717]
[1732759923096,0.052884,96268.0,96267.0,0.0388717]
[1732759924591,0.054884,96268.0,96267.0,0.0388717]
[1732759924794,0.055884,96268.0,96267.0,0.01495066]
[1732759925296,0.07161855,96268.0,96267.0,0.01495066]
[1732759925498,0.43241855,96268.0,96267.0,0.01495066]
[1732759925790,0.05189,96256.0,96255.0,0.00013007]
[1732759925987,0.20901,96256.0,96255.0,0.00013007]
[1732759926287,0.56981,96256.0,96255.0,0.00013007]
[1732759927293,0.56981,96256.0,96255.0,0.00413007]
[1732759927985,0.56981,96256.0,96255.0,0.00613007]
[1732759928993,0.20901,96256.0,96255.0,0.00613007]
[1732759929194,0.17283398,96256.0,96255.0,0.00613007]
[1732759929380,0.28121634,96256.0,96255.0,0.00613007]
[1732759929586,0.28121634,96256.0,96255.0,0.02077278]
[1732759929989,0.28121634,96256.0,96255.0,0.00613007]
[1732759930196,0.12409634,96256.0,96255.0,0.02070905]
[1732759931094,0.12409634,96256.0,96255.0,0.00613007]
[1732759931295,0.12409634,96256.0,96255.0,0.02070524]
[1732759933695,0.208889,96257.0,96255.0,0.02070524]
[1732759933885,0.208889,96257.0,96256.0,0.01457517]
[1732759934894,0.25936413,96257.0,96256.0,0.01457517]
[1732759935195,0.208889,96257.0,96256.0,0.01457517]
[1732759935586,0.36399085,96257.0,96256.0,0.01457517]
[1732759935786,0.36399085,96257.0,96256.0,0.01657517]
[1732759936200,0.36399085,96257.0,96256.0,0.02057517]
[1732759938087,0.208889,96257.0,96256.0,0.02057517]
[1732759940292,0.25936415,96257.0,96256.0,0.02057517]
[1732759940499,0.33301468,96257.0,96256.0,0.02057517]
[1732759941095,0.17601468,96257.0,96256.0,0.02057517]
[1732759941304,0.157,96257.0,96256.0,0.04452779]
[1732759941607,0.051887,96262.0,96256.0,0.40572255]
[1732759941608,0.09311688,96261.0,96256.0,0.40572255]
[1732759941809,0.157,96262.0,96260.0,0.051888]
[1732759942105,0.157,96266.0,96261.0,0.04865693]
[1732759942404,0.25011688,96266.0,96262.0,0.22540055]
[1732759942603,0.25011688,96266.0,96263.0,0.03892255]
[1732759942902,0.30200188,96266.0,96264.0,0.03892255]
[1732759943104,0.30200188,96266.0,96265.0,0.03892255]
[1732759943291,0.208885,96266.0,96265.0,0.0393503]
[1732759944208,0.00012747,96270.0,96268.0,0.051883]
[1732759944510,0.00012747,96270.0,96269.0,0.10500514]
[1732759944804,0.051879,96276.0,96271.0,0.051882]
[1732759945004,0.051879,96276.0,96272.0,0.43370514]
[1732759945204,0.05188,96275.0,96273.0,0.04259483]
[1732759945400,0.05188,96275.0,96274.0,0.04259483]
[1732759945712,0.14506796,96275.0,96274.0,0.04259483]
[1732759946004,0.05188,96275.0,96274.0,0.22903187]
[1732759946215,0.05188,96275.0,96274.0,0.04259483]
[1732759946712,0.05188,96275.0,96274.0,0.04259476]
[1732759947007,0.14506796,96275.0,96274.0,0.20481623]
[1732759947206,0.05188,96275.0,96274.0,0.20481623]
[1732759947410,0.05488,96275.0,96274.0,0.20481623]
[1732759947601,0.05788,96275.0,96274.0,0.20481623]
[1732759948197,0.05888,96275.0,96274.0,0.01837919]
[1732759949304,0.15201671,96275.0,96274.0,0.01837919]
[1732759949503,0.007,96275.0,96274.0,0.01837919]
[1732759950502,0.007,96275.0,96274.0,0.22936145]
[1732759950805,0.007,96275.0,96274.0,0.20481623]
[1732759951195,0.007,96275.0,96274.0,0.01837919]
[1732759951603,0.007,96275.0,96274.0,0.04288198]
[1732759953701,0.007,96275.0,96274.0,0.03963752]
[1732759954617,0.007,96275.0,96274.0,0.04288163]
[1732759955407,0.007,96275.0,96274.0,0.228983]
[1732759955601,0.007,96275.0,96274.0,0.04288163]
[1732759955602,0.1001375,96275.0,96274.0,0.04288163]
[1732759955817,0.007,96275.0,96274.0,0.04288163]
[1732759956114,0.007,96275.0,96274.0,0.38520011]
[1732759956310,0.0931375,96286.0,96274.0,0.08333217]
[1732759956611,0.01594994,96291.0,96290.0,0.051871]
[1732759956612,0.12425061,96291.0,96290.0,0.051871]
[1732759956812,0.12425061,96292.0,96290.0,0.06722781]
[1732759957004,0.12425061,96292.0,96291.0,0.03992557]
[1732759957207,0.17612061,96293.0,96291.0,0.0950404]
[1732759957509,0.17612061,96293.0,96292.0,0.00324383]
[1732759957711,0.17612061,96293.0,96292.0,0.04351201]
[1732759957903,0.05187,96293.0,96292.0,0.04351201]
[1732759958808,0.05187,96293.0,96292.0,0.04451201]
[1732759959004,0.05187,96293.0,96292.0,0.04651201]
[1732759959210,0.05187,96293.0,96292.0,0.04672511]
[1732759960109,0.14483384,96293.0,96292.0,0.04738993]
[1732759960310,0.14483386,96293.0,96292.0,0.04738993]
[1732759960609,0.05187,96293.0,96292.0,0.04738993]
[1732759961215,0.05187,96293.0,96292.0,0.04538993]
[1732759961506,0.05187,96293.0,96292.0,0.04214609]
[1732759961709,0.05187,96293.0,96292.0,0.04114609]
[1732759961910,0.05187,96293.0,96292.0,0.01582542]
[1732759962507,0.05187,96293.0,96292.0,0.01782542]
[1732759962508,0.20863,96293.0,96292.0,0.01782542]
[1732759962906,0.20863,96293.0,96292.0,0.002]
[1732759963309,0.20863,96293.0,96292.0,0.01778498]
[1732759963512,0.20863,96293.0,96292.0,0.002]
[1732759964010,0.21263,96293.0,96292.0,0.002]
[1732759964212,0.16176,96293.0,96285.0,0.3608]
[1732759964405,0.051871,96291.0,96286.0,0.01902897]
[1732759964608,0.051871,96291.0,96287.0,0.01902897]
[1732759964806,0.051871,96291.0,96285.0,0.3608]
[1732759964807,0.051871,96291.0,96288.0,0.01902897]
[1732759965012,0.051871,96291.0,96289.0,0.01902897]
[1732759965212,0.051871,96291.0,96290.0,0.01578498]
[1732759965817,0.051871,96291.0,96285.0,0.3608]
[1732759965818,0.053871,96291.0,96285.0,0.3608]
[1732759966024,0.053871,96291.0,96286.0,0.01923107]
[1732759966203,0.002,96291.0,96287.0,0.01923107]
[1732759966403,0.002,96291.0,96288.0,0.01923107]
[1732759966404,0.051872,96289.0,96288.0,0.01923107]
[1732759966701,0.0319,96290.0,96285.0,0.3608]
[1732759966906,0.0319,96290.0,96286.0,0.01599012]
[1732759967107,0.1248623,96290.0,96287.0,0.02442461]
[1732759967313,0.1248623,96290.0,96288.0,0.01599012]
[1732759967518,0.0319,96290.0,96289.0,0.01599012]
[1732759968206,0.12592493,96290.0,96289.0,0.01599012]
[1732759968816,0.12792493,96290.0,96289.0,0.01599012]
[1732759969014,0.0359,96290.0,96289.0,0.04178044]
[1732759970108,0.087771,96290.0,96289.0,0.04217348]
[1732759970504,0.085771,96290.0,96289.0,0.04217348]
[1732759970706,0.087771,96290.0,96289.0,0.04217348]
[1732759971319,0.088771,96290.0,96289.0,0.07461457]
[1732759971507,0.089771,96290.0,96289.0,0.07461457]
[1732759972420,0.088771,96290.0,96289.0,0.07461457]
[1732759973509,0.245531,96290.0,96289.0,0.07461457]
[1732759973715,0.242531,96290.0,96289.0,0.07461457]
[1732759973922,0.245531,96290.0,96289.0,0.07461457]
[1732759974718,0.246531,96290.0,96289.0,0.07461457]
[1732759975725,0.244531,96290.0,96289.0,0.07461457]
[1732759975925,0.19266,96290.0,96289.0,0.07461457]
[1732759976231,0.16076,96290.0,96289.0,0.07461457]
[1732759976413,0.1374035,96290.0,96289.0,0.08304886]
[1732759976613,0.004,96290.0,96289.0,0.08304886]
[1732759976822,0.1709718,96295.0,96289.0,0.08304886]
[1732759976823,0.12435395,96291.0,96289.0,0.0713631]
[1732759977124,0.15676,96294.0,96289.0,0.0713631]
[1732759977125,0.15676,96294.0,96293.0,0.05187]
[1732759977326,0.15676,96294.0,96293.0,0.13491074]
[1732759977633,0.15676,96294.0,96293.0,0.12972069]
[1732759978714,0.15676,96294.0,96293.0,0.08085069]
[1732759978925,0.15676,96294.0,96293.0,0.32954768]
[1732759979116,0.15676,96294.0,96293.0,0.08085069]
[1732759979431,0.06752753,96295.0,96293.0,0.13272069]
[1732759979724,0.16082308,96295.0,96294.0,0.2941416]
[1732759979919,0.16082308,96295.0,96294.0,0.07443538]
[1732759979920,0.06752753,96295.0,96294.0,0.07443538]
[1732759980123,0.06752753,96295.0,96294.0,0.26118354]
[1732759980521,0.06752753,96295.0,96294.0,0.07460944]
[1732759980721,0.06752753,96295.0,96294.0,0.21252572]
[1732759981025,0.06852753,96295.0,96294.0,0.07461091]
[1732759981625,0.06752753,96295.0,96294.0,0.07461091]
[1732759981933,0.06852753,96295.0,96294.0,0.07461091]
[1732759982231,0.01665853,96295.0,96294.0,0.3317735]
[1732759982418,0.01665853,96295.0,96294.0,0.08304481]
[1732759982933,0.01665853,96295.0,96294.0,0.07785472]
[1732759983521,0.01765853,96295.0,96294.0,0.07785472]
[1732759984428,0.06852753,96295.0,96294.0,0.07885472]
[1732759985021,0.06752753,96295.0,96294.0,0.07885472]
[1732759985630,0.11797971,96295.0,96294.0,0.07885472]
[1732759988136,0.14797971,96295.0,96294.0,0.07561091]
[1732759988429,0.14897971,96295.0,96294.0,0.07561091]
[1732759988633,0.14897971,96295.0,96294.0,0.07461091]
[1732759990032,0.14797971,96295.0,96294.0,0.07461091]
[1732759990229,0.11797971,96295.0,96294.0,0.07461091]
[1732759990538,0.12097971,96295.0,96294.0,0.07461091]
[1732759990922,0.12397971,96295.0,96294.0,0.07461091]
[1732759991128,0.12497971,96295.0,96294.0,0.07461091]
[1732759991625,0.12297971,96295.0,96294.0,0.07461091]
[1732759991934,0.11997971,96295.0,96294.0,0.07461091]
[1732759993032,0.3066294,96295.0,96294.0,0.07461091]
[1732759993235,0.11997971,96295.0,96294.0,0.07461091]
[1732759993733,0.06852753,96295.0,96294.0,0.32332382]
[1732759993932,0.06852753,96295.0,96294.0,0.32334896]
[1732759994331,0.06852753,96295.0,96294.0,0.32434896]
[1732759995036,0.06952753,96295.0,96294.0,0.32334896]
[1732759995339,0.06852753,96295.0,96294.0,0.32334896]
[1732759996038,0.06852753,96295.0,96294.0,0.32334692]
[1732759996635,0.06852753,96295.0,96294.0,0.07460887]
[1732759996842,0.06852753,96295.0,96294.0,0.32333693]
[1732759997141,0.06952753,96295.0,96294.0,0.32333693]
[1732759997331,0.06952753,96295.0,96294.0,0.07460887]
[1732759997528,0.06852753,96295.0,96294.0,0.07460887]
[1732759997732,0.06852753,96295.0,96294.0,0.07785267]
[1732759998441,0.06852753,96295.0,96294.0,0.07460887]
[1732759999139,0.01665853,96295.0,96294.0,0.07460887]
[1732759999338,0.01665853,96295.0,96294.0,0.0032438]
[1732759999536,0.01665853,96295.0,96294.0,0.07785089]
[1732759999741,0.01665853,96295.0,96294.0,0.12971989]
[1732760000138,9.855e-05,96299.0,96294.0,0.07785089]
[1732760000139,0.15668,96298.0,96294.0,0.07785089]
[1732760000335,0.15668,96298.0,96291.0,0.0326]
[1732760000336,0.15668,96298.0,96296.0,0.31680034]
[1732760000540,0.15668,96298.0,96297.0,0.07460709]
[1732760000944,0.15668,96298.0,96297.0,0.12647509]
[1732760001139,0.208547,96298.0,96297.0,0.12647509]
[1732760001355,0.208547,96298.0,96297.0,0.07460709]
[1732760001546,0.208547,96298.0,96297.0,0.32334615]
[1732760001738,0.208547,96298.0,96297.0,0.07460709]
[1732760002434,0.57051996,96298.0,96297.0,0.02470709]
[1732760002636,0.05187,96293.0,96292.0,0.16538672]
[1732760002845,0.05187,96293.0,96288.0,0.26316]
[1732760002846,0.051872,96289.0,96288.0,0.26316]
[1732760003140,0.10232667,96289.0,96288.0,0.2618]
[1732760003947,0.051876,96281.0,96280.0,0.3608]
[1732760004142,0.36411591,96281.0,96280.0,0.3608]
[1732760004339,0.051876,96281.0,96280.0,0.3608]
[1732760004539,0.208556,96281.0,96280.0,0.3608]
[1732760005242,0.15668,96281.0,96280.0,0.3608]
[1732760005542,0.15868,96281.0,96280.0,0.37053269]
[1732760005937,0.002,96281.0,96280.0,0.37053269]
[1732760006140,0.002,96281.0,96280.0,0.3608]
[1732760006337,0.09527068,96281.0,96280.0,0.3608]
[1732760006546,0.002,96281.0,96280.0,0.3608]
[1732760007145,0.0676743,96282.0,96280.0,0.3608]
[1732760007343,0.0676743,96282.0,96280.0,0.3628]
[1732760007344,0.002,96281.0,96280.0,0.3628]
[1732760007745,0.0676743,96282.0,96280.0,0.3628]
[1732760008145,0.0676743,96282.0,96280.0,0.3608]
[1732760008746,0.05046068,96281.0,96280.0,0.3608]
[1732760010441,0.051877,96280.0,96269.0,0.051882]
[1732760010645,0.15540706,96278.0,96270.0,0.03121234]
[1732760010841,0.15540706,96279.0,96271.0,0.03121234]
[1732760011045,0.51748,96283.0,96269.0,0.051882]
[1732760011046,0.05188,96275.0,96272.0,0.03121234]
[1732760011251,0.05188,96275.0,96273.0,0.03121234]
[1732760011548,0.05188,96275.0,96274.0,0.03121234]
[1732760012644,0.05188,96274.0,96272.0,0.3608]
[1732760012845,0.05188,96274.0,96273.0,0.05667415]
[1732760014253,0.05188,96274.0,96273.0,0.02518851]
[1732760014451,0.05188,96274.0,96273.0,0.04282924]
[1732760015551,0.05188,96274.0,96273.0,0.04182924]
[1732760017447,0.05288,96274.0,96273.0,0.04182924]
[1732760017961,0.05488,96274.0,96273.0,0.04082924]
[1732760019559,0.05488,96274.0,96273.0,0.04106334]
[1732760020459,0.14807305,96274.0,96273.0,0.04106334]
[1732760020758,0.05488,96274.0,96273.0,0.01579359]
[1732760021361,0.05488,96274.0,96273.0,0.04107674]
[1732760022567,0.2116,96274.0,96273.0,0.04107674]
[1732760022864,0.051886,96263.0,96262.0,0.3608]
[1732760023059,0.208486,96263.0,96262.0,0.43276525]
[1732760024156,0.208486,96263.0,96262.0,0.43876525]
[1732760026158,0.208486,96263.0,96262.0,0.4378955]
[1732760026459,0.22791136,96263.0,96262.0,0.39771109]
[1732760026655,0.208486,96263.0,96262.0,0.42261067]
[1732760026863,0.09318044,96268.0,96267.0,0.051884]
[1732760027055,0.09318044,96279.0,96267.0,0.07158588]
[1732760027254,0.051877,96280.0,96275.0,0.3608]
[1732760027453,0.051877,96280.0,96276.0,0.07076181]
[1732760027663,0.1566,96281.0,96277.0,0.04046181]
[1732760027857,0.051877,96280.0,96278.0,0.04046181]
[1732760028057,0.051877,96280.0,96279.0,0.04046181]
[1732760028460,0.054877,96280.0,96279.0,0.04046181]
[1732760028774,0.054877,96280.0,96279.0,0.07211154]
[1732760030366,0.15105744,96280.0,96279.0,0.07211154]
[1732760030562,0.15110216,96280.0,96279.0,0.04046181]
[1732760030754,0.057877,96280.0,96279.0,0.07178446]
[1732760030959,0.051877,96280.0,96279.0,0.04046181]
[1732760031163,0.056877,96280.0,96279.0,0.07179417]
[1732760031560,0.07142232,96280.0,96279.0,0.07179417]
[1732760031761,0.07142232,96280.0,96279.0,0.07379417]
[1732760032359,0.07142232,96280.0,96279.0,0.07279417]
[1732760032765,0.07142232,96280.0,96279.0,0.07379417]
[1732760032963,0.07142232,96280.0,96279.0,0.08352716]
[1732760033668,0.07242232,96280.0,96279.0,0.07279417]
[1732760033972,0.07242232,96280.0,96279.0,0.07379417]
[1732760034572,0.07242232,96280.0,96279.0,0.07179417]
[1732760034766,0.07342232,96280.0,96279.0,0.07179417]
[1732760035268,0.002,96280.0,96279.0,0.07179417]
[1732760035567,0.002,96280.0,96279.0,0.12367117]
[1732760035966,0.001,96280.0,96279.0,0.12367117]
[1732760036163,0.001,96280.0,96279.0,0.48447117]
[1732760036362,0.001,96280.0,96279.0,0.45313881]
[1732760036759,0.002,96280.0,96279.0,0.45313881]
[1732760037367,0.001,96280.0,96279.0,0.45313881]
[1732760037672,0.001,96280.0,96279.0,0.40326181]
[1732760037868,0.09427483,96280.0,96279.0,0.40326181]
[1732760038370,0.09327483,96280.0,96279.0,0.40626181]
[1732760038973,0.09327483,96280.0,96279.0,0.40426181]
[1732760039166,0.09327483,96280.0,96279.0,0.40626181]
[1732760039367,0.14515183,96280.0,96279.0,0.40626181]
[1732760039569,0.14515183,96280.0,96279.0,0.40649653]
[1732760039966,0.14515183,96280.0,96279.0,0.40449653]
[1732760041163,0.051877,96280.0,96279.0,0.40449653]
[1732760041365,0.051877,96280.0,96279.0,0.3638]
[1732760041578,0.051877,96280.0,96279.0,0.3628]
[1732760042375,0.051877,96280.0,96279.0,0.61149822]
[1732760042676,0.051877,96280.0,96279.0,0.3638]
[1732760042872,0.051877,96280.0,96279.0,0.65318178]
[1732760043567,0.051877,96280.0,96279.0,0.37927464]
[1732760043782,0.051877,96280.0,96279.0,0.40303407]
[1732760043967,0.052877,96280.0,96279.0,0.40303407]
[1732760044867,0.002,96280.0,96279.0,0.40103407]
[1732760045069,0.002,96280.0,96279.0,0.43153407]
[1732760045472,0.003,96280.0,96279.0,0.43153407]
[1732760046582,0.001,96280.0,96279.0,0.43153407]
[1732760046775,0.001,96280.0,96279.0,0.43453407]
[1732760047177,0.12533611,96280.0,96279.0,0.4646768]
[1732760048073,0.12533611,96280.0,96279.0,0.43261672]
[1732760048274,0.12533611,96280.0,96279.0,0.42961672]
[1732760048579,0.12433611,96280.0,96279.0,0.43261672]
[1732760048881,0.12433611,96280.0,96279.0,0.43361672]
[1732760049085,0.051876,96281.0,96279.0,0.43361672]
[1732760049284,0.051876,96281.0,96280.0,0.03831672]
[1732760051972,0.20728306,96281.0,96280.0,0.0147372]
[1732760052182,0.20731554,96281.0,96280.0,0.0147372]
[1732760052683,0.051876,96281.0,96280.0,0.0147372]
[1732760052880,0.053876,96281.0,96280.0,0.0147372]
[1732760053485,0.17824343,96281.0,96280.0,0.0147372]
[1732760053781,0.053876,96281.0,96280.0,0.0147372]
[1732760053980,0.17824343,96281.0,96280.0,0.0147372]
[1732760054374,0.17824343,96281.0,96269.0,0.414042]
[1732760054375,0.051878,96278.0,96277.0,0.24866425]
[1732760054681,0.051878,96278.0,96277.0,0.26337222]
[1732760055080,0.051878,96278.0,96277.0,0.37550797]
[1732760056171,0.051878,96278.0,96277.0,0.39903962]
[1732760056577,0.051878,96278.0,96277.0,0.03823962]
[1732760056781,0.12441113,96279.0,96277.0,0.03823962]
[1732760056975,0.12441113,96280.0,96278.0,0.09011762]
[1732760057179,0.12441113,96280.0,96279.0,0.03823962]
[1732760057380,0.17628713,96282.0,96279.0,0.03823962]
[1732760057581,0.17628713,96282.0,96280.0,0.03823962]
[1732760057877,0.17628713,96282.0,96278.0,0.3626064]
[1732760057878,0.17628713,96282.0,96281.0,0.01470797]
[1732760059184,0.17628713,96282.0,96281.0,0.0380128]
[1732760059388,0.17628713,96282.0,96281.0,0.0410128]
[1732760059578,0.051876,96282.0,96281.0,0.0410128]
[1732760060887,0.1023349,96282.0,96281.0,0.0410128]
[1732760061288,0.1023349,96282.0,96281.0,0.01770797]
[1732760061476,0.051876,96282.0,96281.0,0.04002674]
[1732760062384,0.10433779,96282.0,96281.0,0.01670797]
[1732760062680,0.10433779,96282.0,96281.0,0.01470797]
[1732760062883,0.10633779,96282.0,96281.0,0.01470797]
[1732760063081,0.10633779,96282.0,96281.0,0.03814475]
[1732760063681,0.29310554,96282.0,96281.0,0.01470797]
[1732760063881,0.10633779,96282.0,96281.0,0.01470797]
[1732760064082,0.055876,96282.0,96281.0,0.01470797]
[1732760064286,0.051881,96273.0,96272.0,0.3608]
[1732760064492,0.051881,96273.0,96272.0,0.39894273]
[1732760064987,0.20748553,96273.0,96272.0,0.39894273]
[1732760065288,0.051881,96273.0,96272.0,0.39894273]
[1732760065486,0.051881,96273.0,96272.0,0.39994273]
[1732760065690,0.051881,96273.0,96272.0,0.40294273]
[1732760066079,0.20747309,96273.0,96272.0,0.40294273]
[1732760066479,0.051881,96273.0,96272.0,0.40294273]
[1732760067081,0.051881,96273.0,96272.0,0.04214273]
[1732760067280,0.051881,96273.0,96272.0,0.01867028]
[1732760067476,0.20740956,96273.0,96272.0,0.01867028]
[1732760067681,0.20740956,96273.0,96272.0,0.004]
[1732760067976,0.17629987,96273.0,96272.0,0.01867226]
[1732760068384,0.17629565,96273.0,96272.0,0.01867226]
[1732760069187,0.17629565,96273.0,96272.0,0.2675517]
[1732760069386,0.17629565,96273.0,96272.0,0.26754856]
[1732760069587,0.19562612,96273.0,96272.0,0.26754856]
[1732760071078,0.19562612,96273.0,96272.0,0.01867226]
[1732760071281,0.19562612,96273.0,96272.0,0.01872245]
[1732760072487,0.07121147,96273.0,96272.0,0.01872245]
[1732760073687,0.07121147,96273.0,96272.0,0.004]
[1732760074093,0.07121147,96273.0,96272.0,0.01882992]
[1732760074290,0.22761147,96273.0,96272.0,0.01882992]
[1732760075992,0.38312979,96273.0,96272.0,0.01882992]
[1732760076189,0.22761147,96273.0,96272.0,0.01882992]
[1732760077789,0.27808,96273.0,96272.0,0.01882992]
[1732760077993,0.46470198,96273.0,96272.0,0.004]
[1732760078492,0.27808,96273.0,96272.0,0.01879467]
[1732760079182,0.27812,96273.0,96272.0,0.01879467]
[1732760080987,0.12168,96273.0,96272.0,0.01879467]
[1732760081188,0.27812,96273.0,96272.0,0.01879467]
[1732760081591,0.22765147,96273.0,96272.0,0.01879467]
[1732760081984,0.38297075,96273.0,96272.0,0.01879467]
[1732760082988,0.22765147,96273.0,96272.0,0.01879467]
[1732760084195,0.22765147,96273.0,96272.0,0.004]
[1732760085089,0.22765147,96273.0,96272.0,0.01850992]
[1732760088497,0.22765147,96273.0,96272.0,0.004]
[1732760088695,0.22765147,96273.0,96272.0,0.01788157]
[1732760089295,0.22765147,96273.0,96272.0,0.004]
[1732760090693,0.22741147,96273.0,96272.0,0.004]
[1732760090897,0.07121147,96273.0,96272.0,0.004]
[1732760091098,0.22741147,96273.0,96272.0,0.004]
[1732760092303,0.17553047,96273.0,96272.0,0.004]
[1732760092502,0.12435664,96277.0,96272.0,0.3648]
[1732760092702,0.1562,96277.0,96276.0,0.24883918]
[1732760092909,0.1562,96278.0,96273.0,0.082779]
[1732760093104,0.12435664,96281.0,96277.0,0.24883105]
[1732760093401,0.2494632,96280.0,96279.0,0.24882744]
[1732760093607,0.1562,96280.0,96279.0,0.24882744]
[1732760093804,0.1562,96280.0,96279.0,0.01350967]
[1732760094208,0.1562,96280.0,96277.0,0.051877]
[1732760094509,0.1562,96280.0,96279.0,0.24874044]
[1732760094705,0.1562,96280.0,96279.0,0.26224764]
[1732760096202,0.1572,96280.0,96279.0,0.0135072]
[1732760096506,0.1572,96280.0,96279.0,0.26217928]
[1732760096701,0.1582,96280.0,96279.0,0.26217928]
[1732760096896,0.1582,96280.0,96279.0,0.26234605]
[1732760097308,0.1582,96280.0,96279.0,0.31422205]
[1732760097605,0.1582,96280.0,96279.0,0.31417453]
[1732760097606,0.002,96280.0,96279.0,0.31417453]
[1732760097801,0.208073,96286.0,96279.0,0.39635869]
[1732760098105,0.208073,96286.0,96285.0,0.051873]
[1732760098298,0.15531928,96290.0,96288.0,0.051872]
[1732760098604,0.20718928,96291.0,96289.0,0.4223]
[1732760099601,0.05187,96291.0,96289.0,0.4223]
[1732760099901,0.05587,96291.0,96289.0,0.4233]
[1732760100207,0.06187,96291.0,96289.0,0.4233]
[1732760100504,0.01,96291.0,96289.0,0.475167]
[1732760100805,0.00155816,96293.0,96291.0,0.051866]
[1732760101107,0.00155816,96293.0,96292.0,0.37449164]
[1732760101303,0.00155816,96293.0,96292.0,0.37448717]
[1732760101505,0.09311123,96293.0,96292.0,0.42635217]
[1732760102016,0.09320453,96299.0,96297.0,0.051862]
[1732760102320,9.855e-05,96299.0,96297.0,0.051862]
[1732760102624,9.855e-05,96299.0,96298.0,0.01321846]
[1732760103120,9.855e-05,96299.0,96297.0,0.051862]
[1732760103323,0.00409855,96299.0,96297.0,0.051862]
[1732760103621,0.09310598,96310.0,96308.0,0.051856]
[1732760103827,0.051856,96310.0,96309.0,0.4242]
[1732760104537,0.051856,96310.0,96309.0,0.785]
[1732760104830,0.00011121,96314.0,96313.0,0.051854]
[1732760105930,0.00011121,96314.0,96313.0,0.36344453]
[1732760106130,0.051845,96329.0,96325.0,0.051847]
[1732760106327,0.051845,96329.0,96327.0,0.3608]
[1732760107134,0.00012476,96328.0,96327.0,0.3608]
[1732760109027,0.00012476,96328.0,96327.0,0.3618]
[1732760109328,0.00212476,96328.0,96327.0,0.3618]
[1732760109639,0.00212476,96328.0,96327.0,0.3628]
[1732760110335,0.01112476,96328.0,96327.0,0.3628]
[1732760112431,0.37192476,96328.0,96327.0,0.002]
[1732760112741,0.59214476,96328.0,96327.0,0.002]
[1732760113129,0.23134476,96328.0,96327.0,0.002]
[1732760113337,1.33134476,96328.0,96327.0,0.002]
[1732760113531,0.23134476,96328.0,96327.0,0.002]
[1732760113932,0.22934476,96328.0,96327.0,0.002]
[1732760116840,0.22734476,96328.0,96327.0,0.001]
[1732760118441,0.22534476,96328.0,96317.0,0.3608]
[1732760118645,0.22734476,96328.0,96327.0,0.001]
[1732760119440,0.22234476,96328.0,96327.0,0.001]
[1732760119635,0.22434476,96328.0,96327.0,0.001]
[1732760120152,0.051853,96314.0,96313.0,0.00011053]
[1732760120645,0.051855,96311.0,96309.0,0.35681052]
[1732760121238,0.051855,96311.0,96293.0,0.0304]
[1732760121239,0.051856,96308.0,96293.0,0.0304]
[1732760121441,0.051856,96308.0,96303.0,0.00011359]
[1732760122845,0.07196615,96308.0,96303.0,0.00011359]
[1732760123045,0.051857,96307.0,96303.0,0.00011359]
[1732760123238,0.12391152,96306.0,96303.0,0.00011359]
[1732760123435,0.17576952,96306.0,96303.0,0.00011359]
[1732760123642,0.051858,96305.0,96303.0,0.00011359]
[1732760124750,0.12397172,96304.0,96303.0,0.00011359]
[1732760125143,0.051858,96305.0,96303.0,0.00011359]
[1732760127343,0.0636,96304.0,96303.0,0.00011359]
[1732760128040,0.0636,96304.0,96303.0,0.01437524]
[1732760129147,0.0636,96304.0,96303.0,0.03767096]
[1732760129448,0.0676,96304.0,96303.0,0.03767096]
[1732760129857,0.0656,96304.0,96303.0,0.03767096]
[1732760130244,0.0666,96304.0,96303.0,0.03767096]
[1732760131650,0.1596692,96304.0,96303.0,0.03782552]
[1732760132447,0.0666,96304.0,96303.0,0.03782552]
[1732760132749,0.1588,96304.0,96303.0,0.03782552]
[1732760133154,0.1588,96304.0,96303.0,0.22342662]
[1732760133555,0.1568,96304.0,96303.0,0.03782552]
[1732760133755,0.1588,96304.0,96303.0,0.03782552]
[1732760135151,0.1588,96304.0,96303.0,0.01461818]
[1732760135354,0.1568,96304.0,96303.0,0.01561818]
[1732760135553,0.1558,96304.0,96303.0,0.01561818]
[1732760136159,0.27989227,96304.0,96303.0,0.01761818]
[1732760136348,0.12409227,96304.0,96303.0,0.01761818]
[1732760137252,0.207658,96305.0,96303.0,0.01761818]
[1732760137454,0.207658,96305.0,96304.0,0.01450459]
[1732760137757,0.33175027,96305.0,96304.0,0.01450459]
[1732760137953,0.207658,96305.0,96304.0,0.01450459]
[1732760138155,0.33175027,96305.0,96304.0,0.01450459]
[1732760138356,0.01973672,96310.0,96304.0,0.01450459]
[1732760138357,0.1241648,96307.0,96304.0,0.01450459]
[1732760138550,0.051857,96308.0,96305.0,0.0632]
[1732760138860,0.051857,96308.0,96307.0,0.3608]
[1732760139058,0.051857,96308.0,96307.0,0.39887924]
[1732760139849,0.051857,96308.0,96307.0,0.37530459]
[1732760140253,0.17603842,96308.0,96307.0,0.37530459]
[1732760141160,0.051857,96308.0,96307.0,0.37530459]
[1732760141955,0.051857,96308.0,96307.0,0.3754636]